Cogmind - Beta 17.1 @@@ ROGUE MODE // 2026.09.20 @ 05:59:44 Player: Somberlain Result: Destroyed by DAS Turret with DAS Cannon Performance ------------- Evolutions (0) 0 Regions Visited (3) 600 Robots Destroyed (16) 80 Value Destroyed (307) 307 Prototype IDs (24) 480 Alien Tech Used (0) 0 Bonus (274) 274 TOTAL SCORE: 1741 Bonus ------- Aligned with FarCom 300 Friendly Fire -26 Cogmind --------- Core Integrity 0/250 Matter 284/300 Energy 100/100 System Corruption 0% Temperature Cool (0) Movement Core (150) Ox2 Location -10/Exiles Parts ------- > --- POWER (1) -------- (None) > --- PROPULSION (2) --- (None) > --- UTILITY (2) ------ Small Storage Unit Hacking Suite > --- WEAPON (2) ------- Particle Gun > --- INVENTORY (8) ---- Superbattery (1500) Trap Reconfigurator Army-in-a-Box (30/30) Peak State ------------ > --- POWER ------------ Light Nuclear Core > --- PROPULSION ------- Light Treads Light Treads > --- UTILITY ---------- Bomb Drone Bay > --- WEAPON ----------- Medium Laser Particle Gun > --- INVENTORY -------- Light Ion Engine Aluminum Leg Signal Interpreter Hacking Suite Mining Laser [Rating: 22] Favorites ----------- Power Light Nuclear Core Engine Light Ion Engine Power Core Light Nuclear Core Propulsion Light Treads Treads Light Treads Utility Small Storage Unit Device Improved Heat Sink Storage Small Storage Unit Hackware Hacking Suite Protection Light Armor Plating Weapon Medium Laser Energy Gun Medium Laser Build | -11 -10 -10 -10 ------- Run | Yrd Mat Min Exi Slots Evolved . | . . . . Power . | . . . . Propulsion . | . . . . Utility . | . . . . Weapon . | . . . . Parts Attached 13 | 6 5 1 1 Power 3 | 1 2 . . Engine 1 | 1 . . . Core 2 | . 2 . . Reactor . | . . . . Propulsion 2 | 2 . . . Treads 2 | 2 . . . Leg . | . . . . Wheel . | . . . . Hover . | . . . . Flight . | . . . . Utility 5 | 1 2 1 1 Device 2 | . 1 1 . Storage 1 | 1 . . . Processor . | . . . . Hackware 1 | . . . 1 Protection 1 | . 1 . . Artifact . | . . . . Weapon 3 | 2 1 . . Energy Gun 3 | 2 1 . . Energy Cannon . | . . . . Ballistic Gun . | . . . . Ballistic Cannon . | . . . . Launcher . | . . . . Special Weapon . | . . . . Impact Weapon . | . . . . Slashing Weapon . | . . . . Piercing Weapon . | . . . . Special Melee Weapon . | . . . . Unidentified Prototypes 1 | . . 1 . Parts Lost 5 | . 1 . 4 Power 1 | . . . 1 Propulsion 2 | . . . 2 Utility . | . . . . Weapon 2 | . 1 . 1 Highest Loss Streak 4 | . 1 . 4 To Critical Strikes . | . . . . Average Backups 5 | 1 5 7 5 Power . | . . 1 . Propulsion 1 | 1 1 . . Utility 1 | . . 2 2 Weapon 1 | . 1 2 1 Tool/Special . | . . . . Unused Backups 11 | . 2 2 7 Power . | . . . . Propulsion 2 | . 1 1 . Utility 5 | . 1 1 3 Weapon 3 | . . . 3 Tool/Special 1 | . . . 1 Average Slot Usage (%) 98 | . 98 98 98 Engine 3 | . 5 . . Core 10 | . 8 14 13 Treads 27 | . 28 28 27 Device 8 | . 7 13 8 Storage 13 | . 14 13 14 Hackware 1 | . . . 5 Protection 2 | . 5 . . Energy Gun 27 | . 27 28 27 Peak Build Rating 22 | 6 13 22 19 Average Rating 11 | 4 10 13 15 On Entrance 8 | . 6 13 14 Avg Prop Armor Cover (%) . | . . . . Naked Turns . | . . . . Heaviest Build 18 | 12 18 16 16 Greatest Support 40 | 40 40 40 40 Greatest Overweight (x) 2 | . . . 2 Average Overweight (x) . | . . . . Largest Inventory Capacity 8 | 8 8 8 8 Average Capacity 7 | 7 8 7 8 Most Carried 8 | 2 8 8 8 Average Carried 6 | 1 5 7 7 Final Capacity 8 | 8 8 8 8 Final Carried 8 | 2 8 8 8 Class Distribution -------------------- 100% | Mutant Dominant Class ---------------- Mutant | -10/Materials Mutant | -10/Mines Mutant | -10/Exiles Resources | -11 -10 -10 -10 ----------- Run | Yrd Mat Min Exi Matter Collected 369 | 183 182 . 4 Remotely . | . . . . Salvage Created 492 | . 492 . . Parts 35 | . 35 . . Haulers Intercepted 1 | . 1 . . Recyclers Shooed 1 | . 1 . . Parts Field Recycled . | . . . . Retrieved Matter . | . . . . Parts Self-Destructed . | . . . . Prevented . | . . . . Parts Restored . | . . . . Kills | -11 -10 -10 -10 ------- Run | Yrd Mat Min Exi Combat Hostiles Destroyed 11 | . 11 . . Guns 11 | . 11 . . Classes Destroyed 7 | . 7 . . Worker 1 | . 1 . . Hauler 1 | . 1 . . Recycler 1 | . 1 . . Operator 1 | . 1 . . Watcher 1 | . 1 . . Swarmer 6 | . 6 . . Grunt 5 | . 5 . . Best Kill Streak 4 | . 4 . . Combat Bots Only 3 | . 3 . . Max Kills in Single Turn 2 | . 2 . . Gunslinging 1 | . 1 . . Exploded . | . . . . Melee . | . . . . Uniques/NPCs Destroyed . | . . . . Combat | -11 -10 -10 -10 -------- Run | Yrd Mat Min Exi Hostile Shots Fired 60 | . 47 . 13 Missed 12 | . 10 . 2 Hits 48 | . 37 . 11 Melee 1 | . . . 1 Projectile 47 | . 37 . 10 Damage Taken 977 | . 442 . 535 Core 284 | . 44 . 240 Absorbed by Shields . | . . . . Core Remaining (%) 100 | 100 . . . Volleys Fired 44 | . 43 . 1 Largest 2 | . 2 . 2 Hottest 115 | . 115 . 115 Shots Fired 87 | . 85 . 2 Gun 87 | . 85 . 2 Cannon . | . . . . Launcher . | . . . . Special . | . . . . Kinetic . | . . . . Thermal 79 | . 77 . 2 Explosive . | . . . . Electromagnetic 8 | . 8 . . Robot Hit Streak 8 | . 8 . 6 Robot Miss Streak 6 | . 6 . . Penetration Max . | . . . . Secondary Targets 1 | . 1 . . Max Gunslinging Chain 1 | . 1 . . Shots Hit Robots 52 | . 50 . 2 Core Hits 23 | . 23 . . Critical Kills . | . . . . Critical Parts Destroyed . | . . . . Critical Strikes 4 | . 4 . . Burn 4 | . 4 . . Melee Attacks . | . . . . Impact . | . . . . Slashing . | . . . . Piercing . | . . . . Sneak Attacks . | . . . . Combat Hostiles . | . . . . Follow-up Attacks . | . . . . Damage Inflicted 874 | . 848 . 26 Guns 835 | . 809 . 26 Cannons . | . . . . Explosions 39 | . 39 . . Melee . | . . . . Ramming . | . . . . Kinetic . | . . . . Thermal 814 | . 788 . 26 Explosive . | . . . . Electromagnetic 60 | . 60 . . Impact . | . . . . Slashing . | . . . . Piercing . | . . . . Highest Corruption . | . . . . Average Corruption . | . . . . Corruption Purged . | . . . . Corruption Blocked . | . . . . Overload Shots . | . . . . Overflow Damage 4 | . 4 . . Projectiles . | . . . . Explosions 4 | . 4 . . Melee . | . . . . Knockbacks . | . . . . Impact . | . . . . Kinetic . | . . . . Secondary . | . . . . Self-Inflicted Damage 26 | . 26 . . Shots 1 | . 1 . . Rammed . | . . . . Targets Rammed . | . . . . Kicked . | . . . . Crushed . | . . . . Highest Temperature 374 | . 374 . 60 Average Temperature 106 | . 109 . 33 Received Heat Transfer 183 | . 183 . . Effects 2 | . 2 . . Shutdowns 1 | . 1 . . Matter Decay 1 | . 1 . . Siege Activations . | . . . . Martial Activations . | . . . . Shielding Activations . | . . . . Robots Disrupted . | . . . . Combat Hostiles . | . . . . Robots Corrupted . | . . . . Combat Hostiles . | . . . . Parts Fried . | . . . . Impact Corruptions . | . . . . Robots Melted . | . . . . Combat Hostiles . | . . . . Parts Melted 1 | . 1 . . Heat Transferred 2294 | . 2220 . 74 Parts Sabotaged . | . . . . Parts Stolen . | . . . . Parts Stripped . | . . . . Power Chain Reactions 1 | . 1 . . Alert | -11 -10 -10 -10 ------- Run | Yrd Mat Min Exi Maximum Alert Level . | . . . . Low Security (%) 100 | 100 100 100 . Level 1 . | . . . . Level 2 . | . . . . Level 3 . | . . . . Level 4 . | . . . . Level 5 . | . . . . High Security . | . . . . Max Security . | . . . . Peak Influence 131 | . 131 40 . Initial 40 | . . 40 . Average 36 | . 49 7 . Influence Increases 346 | . 346 . . Destroy 0b10 Robot/C 220 | . 220 . . Destroy 0b10 Robot/NC 25 | . 25 . . Destroy Leader 54 | . 54 . . Successful Hack 12 | . 12 . . Disable Machine 15 | . 15 . . Destroy Structure 5 | . 5 . . Lose Combat Pursuer 15 | . 15 . . Influence Decreases 346 | . 240 106 . Entered New Map 66 | . . 66 . Time Decay 270 | . 230 40 . Lost Part 10 | . 10 . . Squads Dispatched 1 | . 1 . . Investigation . | . . . . Extermination . | . . . . Reinforcement 1 | . 1 . . Assault . | . . . . Garrison . | . . . . Intercept . | . . . . Searches Triggered . | . . . . Construction Impeded . | . . . . Haulers Reinforced . | . . . . Active Scanning Responses . | . . . . Cargo Convoy Interrupts . | . . . . Stealth | -11 -10 -10 -10 --------- Run | Yrd Mat Min Exi Distress Signals 3 | . 3 . . Communications Jammed . | . . . . Distress Signals . | . . . . Times Spotted 22 | . 17 . 5 Peak Tracking Total 12 | . 4 . 12 Tactical Retreats 1 | . 1 . . Traps | -11 -10 -10 -10 ------- Run | Yrd Mat Min Exi Traps Triggered . | . . . . Indirectly . | . . . . Trap Hack Attempts . | . . . . Triggered . | . . . . Disarmed . | . . . . Reprogrammed . | . . . . Reused . | . . . . Traps Extracted . | . . . . Installed . | . . . . Triggered . | . . . . Machines | -11 -10 -10 -10 ---------- Run | Yrd Mat Min Exi Machines Disabled 3 | . 3 . . Max in Single Turn 1 | . 1 . . Machines Repaired . | . . . . Machines Dismantled . | . . . . Machines Sabotaged . | . . . . Overloaded Fab Kills . | . . . . Hacking | -11 -10 -10 -10 --------- Run | Yrd Mat Min Exi Machines Accessed 9 | . 5 1 3 Terminals 5 | . 5 . . Fabricators . | . . . . Repair Stations . | . . . . Recycling Units . | . . . . Scanalyzers . | . . . . Garrison Access . | . . . . Total Hacks 17 | . 13 1 3 Successful 6 | . 2 1 3 Failed 11 | . 11 . . Catastrophic 3 | . 3 . . Database Lockouts . | . . . . Manual 15 | . 13 . 2 Terminals 13 | . 13 . . Fabricators . | . . . . Repair Stations . | . . . . Recycling Units . | . . . . Scanalyzers . | . . . . Garrison Access . | . . . . Terminal Hacks 6 | . 2 1 3 Record 2 | . . . 2 Robot Analysis 2 | . 2 . . Open Door 1 | . . 1 . Proto ID Catalog 1 | . . . 1 Fabricator Hacks . | . . . . Repair Station Hacks . | . . . . Recycling Unit Hacks . | . . . . Scanalyzer . | . . . . Garrison Access Hacks . | . . . . Unauthorized Hacks . | . . . . Terminals . | . . . . Fabricators . | . . . . Repair Stations . | . . . . Recycling Units . | . . . . Scanalyzers . | . . . . Garrison Access . | . . . . Data Cores Recovered . | . . . . Used . | . . . . Hacking Detections 5 | . 5 . . Full Trace Events . | . . . . Feedback Events . | . . . . Feedback Blocked . | . . . . Robot Schematics Acquired . | . . . . Robots Built . | . . . . Authchips . | . . . . Time . | . . . . Total Robot Build Rating . | . . . . Part Schematics Acquired . | . . . . Parts Built . | . . . . Authchips . | . . . . Time . | . . . . Total Part Build Rating . | . . . . Part Studies Acquired . | . . . . Parts Repaired . | . . . . Time . | . . . . Parts Recycled . | . . . . Recycled Matter . | . . . . Retrieved Matter . | . . . . Retrieved Components . | . . . . Parts Scanalyzed . | . . . . Part Schematics Acquired . | . . . . Parts Damaged . | . . . . Bothacking | -11 -10 -10 -10 ------------ Run | Yrd Mat Min Exi Used RIF Installer . | . . . . Robots Hacked . | . . . . Non-combat . | . . . . Combat . | . . . . Robot Hacks Applied . | . . . . Relay Couplers Released . | . . . . Fabnet Peak Effective % . | . . . . Robots Rewired . | . . . . Allies Hacked . | . . . . Hacks Repelled . | . . . . Allies | -11 -10 -10 -10 -------- Run | Yrd Mat Min Exi Total Allies . | . . . . Largest Group . | . . . . Highest-Rated Group . | . . . . Highest-Rated Ally . | . . . . Total Orders . | . . . . Ally Attacks . | . . . . Total Damage . | . . . . Kills . | . . . . Allies Corrupted . | . . . . Allies Melted . | . . . . Intel | -11 -10 -10 -10 ------- Run | Yrd Mat Min Exi Active Infowar (turns) . | . . . . Robot Analysis Total 2 | . 2 . . Derelict Logs Recovered . | . . . . Drone Launches . | . . . . Drone Recoveries . | . . . . Exploration | -11 -10 -10 -10 ------------- Run | Yrd Mat Min Exi Turns Passed 1716 | 96 857 273 490 Spaces Moved 932 | 57 416 160 299 Core 14 | 5 . . 9 Treads 918 | 52 416 160 290 Legs . | . . . . Wheels . | . . . . Hover . | . . . . Flight . | . . . . Fastest Speed 50 | 50 160 160 150 Average Speed 159 | 150 160 160 159 Slowest Speed 160 | 160 160 160 160 Overloaded Moves . | . . . . Propulsion Burnouts . | . . . . Robots Hopped . | . . . . Potential Cave-ins . | . . . . Cave-ins Triggered . | . . . . Exploration Rate (%) 40 | 2 63 36 59 Regions Visited 3 Branch Regions 2 Pre-discovered Areas . | . . . . Known Exits Taken . | . . . . Unknown Exits Taken 3 | 1 1 1 . Scrap Searched . | . . . . Spaces Dug . | . . . . Terrain Destroyed 3 | . 3 . . Melee . | . . . . Projectile . | . . . . AOE 3 | . 3 . . Terrain Rammed . | . . . . Walls Destroyed . | . . . . Machines Disabled . | . . . . Actions | -11 -10 -10 -10 --------- Run | Yrd Mat Min Exi Total 1080 | 64 523 180 313 Wait 54 | . 46 6 2 Move 929 | 56 415 159 299 Hop . | . . . . Pick Up 19 | 2 10 4 3 Fast Attach 11 | 6 2 3 . Attach 2 | . 1 . 1 Detach . | . . . . Swap 2 | . 2 . . Drop 19 | . 4 8 7 Fire 44 | . 43 . 1 Melee . | . . . . Ram . | . . . . Kick . | . . . . Crush . | . . . . Escape Stasis . | . . . . Rewire . | . . . . Trap . | . . . . Miscellaneous . | . . . . Route ------- -11/Scrapyard -10/Materials (discovered 3 exits: [*Mat] / *Min / [*Sub]) -10/Mines -10/Exiles History --------- Turn | Location | Event 3 | -11/Scrapyard | Discovered new exit (range 15) 97 | -11/Scrapyard | Entered Materials 311 | -10/Materials | Build established: Mutant 387 | -10/Materials | Discovered new exit (range 7) 699 | -10/Materials | Discovered new exit (range 16) 767 | -10/Materials | Discovered new exit (range 6) 954 | -10/Materials | Entered Mines 957 | -10/Mines | Met a Derelict bent on vengeance 1056 | -10/Mines | Found the Drone Emporium 1069 | -10/Mines | Found Prototype Device 1069 | -10/Mines | Identified Bomb Drone Bay 1221 | -10/Mines | Deemed a non-threat by the Exiles lab entrance 1221 | -10/Mines | Discovered new exit (range 5) 1227 | -10/Mines | Entered Exiles 1264 | -10/Exiles | Met 8R-AWN 1293 | -10/Exiles | Met EX-HEX 1343 | -10/Exiles | Met EX-BIN 1360 | -10/Exiles | Aligned with FarCom system 1362 | -10/Exiles | Given EX-Vault access code 1400 | -10/Exiles | Opened EX-Vault 1477 | -10/Exiles | Warned to stay clear of 0b10 Research branches 1550 | -10/Exiles | Found Army-in-a-Box 1556 | -10/Exiles | Found Trap Reconfigurator 1560 | -10/Exiles | Found Superbattery 1638 | -10/Exiles | Met EX-DEC 1696 | -10/Exiles | Attacked by the Exiles 1712 | -10/Exiles | Core integrity fell below 50% 1716 | -10/Exiles | Core integrity fell below 20% 1717 | -10/Exiles | Destroyed by DAS Turret with DAS Cannon Last Messages --------------- 01543_ Dropped Mining Laser. 01548_ Dropped Bomb Drone Bay. 01550_ Acquired Army-in-a-Box. 01556_ Acquired Trap Reconfigurator. 01560_ Dropped Plasma Cutter. 01560_ Acquired Superbattery. EX-DEC: Ah I see we have a visitor. One wrong move in here and I'll invert your atomic chain! 01640_ EX-DEC: "Oops, I hope HEX didn't hear that..." 01696_ EXILES: Hostile robot within lab perimeter. Defensive protocols time, folks! 01699_ Med. Laser destroyed. 01701_ Lgt. Nuclear Core destroyed. 01703_ Lgt. Treads destroyed. 01704_ Machine disabled. 01709_ EX-BIN: "I just want to science!" 01711_ Knocked back. 01713_ Acquired 4 matter. Map ----- +----------------------------------------------------+ | ?????????????????????????????##"###### #?#"""" | | ????????????????????????????? "?????# #?#"""" | | ????????????????????????????"""??????# #?#"""" | | ????????????????????????????"""?????## ###"" " | | ????????????????????????????????????#" " | | ????????????????????????????????????#" | | ????????????????????????????????????#" | | ????????????????????????????????????#" | | ????????????????????????????????????#" | | ????????????????????????????????????#" | | ???????????????????????? "??????????## | | ???????????????????????? ???????????# | | ???????????????????????" ???????????#" "X" | | ???????????????????????" ???????????#" """ | | ?????????????????????? ???????????#" """""" | | ???????????????????????" ??????????##" ####### | | ???????????????????????# ?????????##"" #?????? | | ??????????????##?????### ###?######"" #?????? | | ???????????? """#####X# #"###""""""" ##????? | | ???????????? """""" " "" ##???# | | ???????????? "" """ " ##### | | ??????????? " " | | ??????????? | | ????????????# | | ?????????????# | | ??????????????# @ % | | ???????????????#" | | ???????????????#""" a% """""" | | ??????????????##" a ######""" | | ??????????????#"" a ""##????#####""" | | ??????????????#""" """##?????????##""" | | ??????????????""" """##???????????#"""" | | ?????????????#""" ""#????????????#"" | | ?????????????#"" %########????#??""" | | ?????????????#""" a ## ####""" | | ?????????????#"" """ | | ?????????????##"" t % % | | ??????????????#"""" c | | ???????????????# | | ???????????????#" %" "" | | ???????????????#"""" ""## ##"""?" " | | ???????????????#"" ""###?? #???????? | | ???????????????#" """"##?????#???????? | | ???????????????#""" """#??????????????? | | ???????????????## ""##??????????????? | | ????????????????#"" """##???????????????? | | ????????????????##""" ##????????????????? | | ?????????????????##"""" ##?????????????????? | | ??????????????????### #??????????????????? | | ????????????????????##### ##??????????????????? | +----------------------------------------------------+ Best States ------------- Heat Dissipation 39 Energy Generation 14 Energy Capacity 160 Matter Stores 300 Matter Capacity 300 Sight Range 16 Terrain Scan Density 10 Armor Coverage 150 Evasion (%) 40 Recoil Reduction 2 Offensive Hacking 10 Item Schematics ----------------- None Robot Schematics ------------------ None Fabricated ------------ Nothing Repaired ---------- Nothing Studied --------- None Alien Tech Used ----------------- None Achievements -------------- None Challenges ------------ None Game ------ Seed QuantumBurstChainsaw Manual? 0 Play Time 00:11:08 Cumulative 145.3 hours Start 2026.09.20 @ 05:51:05 End 2026.09.20 @ 05:59:44 Sessions 1 Manual Loads 0 Difficulty Rogue Special Mode None Game No. 161 Rogue 161 Adventurer 0 Explorer 0 Win Type - Total 0 Types 0/0/0/0/0/0/0/0/0/0 Lore% 55 Gallery% 58 Achievement% 45 Wizard Run 0 Options --------- Layout 1 ASCII 0 Keyboard 0 Movement Mouse Keybinds 0 Fullscreen 2 Font 24/Smallcaps Map View 50x35 Zoom Use 0% Tactical HUD 1 Map Filters NONE Filters NONE Steam 1 RUN: 219f6c54-559f-4198-a06a-121c3eecbb05